[Event "Titled Tuesday Blitz May 16 Early 2023"]
[White "Asavasaetakul, Chawit"]
[Black "Ansh M Shah"]
[WhiteFideId "6204856"]
[BlackFideId "25033379"]
[WhiteElo "1919"]
[BlackElo "2084"]
[Result "1-0"]
[Round "06"]
[TimeControl "180+2"]
[Date "2023.05.16"]
[WhiteClock "0:01:10"]
[BlackClock "0:00:03"]

1. e4 {[%clk 0:03:00]}  c6 {[%clk 0:02:59]} 2. d4 {[%clk 0:03:00]}  d5 {[%clk 0:03:00]} 3. Nd2 {[%clk 0:03:01]}  dxe4 {[%clk 0:02:59]} 4. Nxe4 {[%clk 0:03:02]}  Bf5 {[%clk 0:02:58]} 5. Ng3 {[%clk 0:03:02]}  Bg6 {[%clk 0:02:58]} 6. h4 {[%clk 0:02:57]}  h6 {[%clk 0:02:57]} 7. Nf3 {[%clk 0:02:56]}  Nd7 {[%clk 0:02:57]} 8. h5 {[%clk 0:02:57]}  Bh7 {[%clk 0:02:56]} 9. Bd3 {[%clk 0:02:58]}  Bxd3 {[%clk 0:02:57]} 10. Qxd3 {[%clk 0:02:59]}  e6 {[%clk 0:02:57]} 11. Bd2 {[%clk 0:02:59]}  Ngf6 {[%clk 0:02:58]} 12. O-O-O {[%clk 0:03:00]}  Be7 {[%clk 0:02:58]} 13. Kb1 {[%clk 0:03:00]}  O-O {[%clk 0:02:57]} 14. Qe2 {[%clk 0:03:01]}  Qb6 {[%clk 0:02:44]} 15. c4 {[%clk 0:03:00]}  Rad8 {[%clk 0:02:37]} 16. Ne4 {[%clk 0:02:31]}  Nxe4 {[%clk 0:02:36]} 17. Qxe4 {[%clk 0:02:32]}  Nf6 {[%clk 0:02:36]} 18. Qe2 {[%clk 0:02:32]}  Rfe8 {[%clk 0:02:35]} 19. Bc3 {[%clk 0:02:32]}  c5 {[%clk 0:02:29]} 20. dxc5 {[%clk 0:02:29]}  Qxc5 {[%clk 0:02:28]} 21. Ne5 {[%clk 0:02:28]}  Bd6 {[%clk 0:02:15]} 22. f4 {[%clk 0:02:27]}  Qc7 {[%clk 0:01:45]} 23. g4 {[%clk 0:02:23]}  Nd7 {[%clk 0:01:40]} 24. g5 {[%clk 0:02:00]}  Bxe5 {[%clk 0:01:13]} 25. fxe5 {[%clk 0:01:59]}  hxg5 {[%clk 0:01:08]} 26. h6 {[%clk 0:01:59]}  g6 {[%clk 0:00:51]} 27. h7+ {[%clk 0:01:57]}  Kh8 {[%clk 0:00:42]} 28. Qf3 {[%clk 0:01:43]}  Qc6 {[%clk 0:00:19]} 29. Qxf7 {[%clk 0:01:36]}  Qe4+ {[%clk 0:00:17]} 30. Ka1 {[%clk 0:01:36]}  Rf8 {[%clk 0:00:12]} 31. Qxe6 {[%clk 0:01:31]}  Nc5 {[%clk 0:00:06]} 32. Qe7 {[%clk 0:01:19]}  Na4 {[%clk 0:00:04]} 33. Qxd8 {[%clk 0:01:16]}  Rxd8 {[%clk 0:00:03]} 34. Rxd8+ {[%clk 0:01:16]}  Kg7 {[%clk 0:00:03]} 35. h8=Q+ {[%clk 0:01:16]}  Kf7 {[%clk 0:00:03]} 36. Qe8+ {[%clk 0:01:11]}  Kg7 {[%clk 0:00:03]} 37. Qf8# {[%clk 0:01:10]} 1-0


[Site "https://www.chess.com"]

[Event "Titled Tuesday Blitz May 16 Early 2023"]
[White "I_KID_you_not"]
[Black "Janaszak, Dawid"]
[BlackFideId "1119206"]
[WhiteElo "2330"]
[BlackElo "2220"]
[Result "0-1"]
[Round "06"]
[TimeControl "180+2"]
[Date "2023.05.16"]
[WhiteClock "0:00:00"]
[BlackClock "0:00:26"]

1. e4 {[%clk 0:03:00]}  Nc6 {[%clk 0:02:53]} 2. Nf3 {[%clk 0:03:00]}  e5 {[%clk 0:02:52]} 3. d4 {[%clk 0:02:57]}  exd4 {[%clk 0:02:51]} 4. Nxd4 {[%clk 0:02:58]}  Bb4+ {[%clk 0:02:50]} 5. c3 {[%clk 0:02:56]}  Bc5 {[%clk 0:02:48]} 6. Be3 {[%clk 0:02:56]}  Qf6 {[%clk 0:02:48]} 7. Nf5 {[%clk 0:02:41]}  Bxe3 {[%clk 0:02:45]} 8. Nxe3 {[%clk 0:02:41]}  Nge7 {[%clk 0:02:45]} 9. Be2 {[%clk 0:02:27]}  d6 {[%clk 0:02:44]} 10. O-O {[%clk 0:02:24]}  O-O {[%clk 0:02:44]} 11. f4 {[%clk 0:02:17]}  Ng6 {[%clk 0:02:37]} 12. Nd5 {[%clk 0:02:17]}  Qd8 {[%clk 0:02:37]} 13. Nd2 {[%clk 0:02:06]}  f5 {[%clk 0:02:36]} 14. Bd3 {[%clk 0:01:45]}  Nce7 {[%clk 0:02:30]} 15. Nxe7+ {[%clk 0:01:14]}  Nxe7 {[%clk 0:02:31]} 16. Qc2 {[%clk 0:01:08]}  Kh8 {[%clk 0:02:25]} 17. Rae1 {[%clk 0:01:06]}  c6 {[%clk 0:02:17]} 18. Kh1 {[%clk 0:01:02]}  a5 {[%clk 0:02:11]} 19. exf5 {[%clk 0:00:48]}  Bxf5 {[%clk 0:02:10]} 20. Bxf5 {[%clk 0:00:43]}  Nxf5 {[%clk 0:02:10]} 21. Ne4 {[%clk 0:00:44]}  Qh4 {[%clk 0:02:08]} 22. Qf2 {[%clk 0:00:41]}  Qh6 {[%clk 0:02:03]} 23. Ng5 {[%clk 0:00:39]}  Kg8 {[%clk 0:01:47]} 24. Re6 {[%clk 0:00:38]}  Rf6 {[%clk 0:01:47]} 25. Rfe1 {[%clk 0:00:38]}  Raf8 {[%clk 0:01:47]} 26. Re8 {[%clk 0:00:34]}  Qg6 {[%clk 0:01:42]} 27. Rxf8+ {[%clk 0:00:34]}  Rxf8 {[%clk 0:01:43]} 28. Re6 {[%clk 0:00:28]}  Rf6 {[%clk 0:01:43]} 29. Qe2 {[%clk 0:00:20]}  Rxe6 {[%clk 0:01:06]} 30. Qxe6+ {[%clk 0:00:20]}  Qxe6 {[%clk 0:01:07]} 31. Nxe6 {[%clk 0:00:20]}  c5 {[%clk 0:01:01]} 32. Kg1 {[%clk 0:00:15]}  b5 {[%clk 0:01:00]} 33. Kf2 {[%clk 0:00:15]}  Kf7 {[%clk 0:01:01]} 34. Nc7 {[%clk 0:00:15]}  b4 {[%clk 0:01:00]} 35. Nd5 {[%clk 0:00:13]}  Ke6 {[%clk 0:00:56]} 36. Nc7+ {[%clk 0:00:13]}  Kd7 {[%clk 0:00:55]} 37. Nd5 {[%clk 0:00:13]}  Kc6 {[%clk 0:00:56]} 38. Ne3 {[%clk 0:00:11]}  Ne7 {[%clk 0:00:53]} 39. f5 {[%clk 0:00:10]}  a4 {[%clk 0:00:52]} 40. cxb4 {[%clk 0:00:08]}  cxb4 {[%clk 0:00:52]} 41. g4 {[%clk 0:00:08]}  Kc5 {[%clk 0:00:49]} 42. Kf3 {[%clk 0:00:06]}  d5 {[%clk 0:00:48]} 43. Kf4 {[%clk 0:00:04]}  d4 {[%clk 0:00:48]} 44. Nd1 {[%clk 0:00:04]}  h6 {[%clk 0:00:44]} 45. h4 {[%clk 0:00:04]}  Nd5+ {[%clk 0:00:40]} 46. Ke5 {[%clk 0:00:04]}  Ne3 {[%clk 0:00:41]} 47. Nf2 {[%clk 0:00:04]}  Kc4 {[%clk 0:00:35]} 48. Ke4 {[%clk 0:00:04]}  Nd5 {[%clk 0:00:30]} 49. g5 {[%clk 0:00:04]}  hxg5 {[%clk 0:00:31]} 50. hxg5 {[%clk 0:00:04]}  a3 {[%clk 0:00:25]} 51. bxa3 {[%clk 0:00:00]}  bxa3 {[%clk 0:00:26]} 0-1


[Site "https://www.chess.com"]

[Event "Titled Tuesday Blitz May 16 Early 2023"]
[White "Baghdasaryan, Vahe"]
[Black "Thiel, Thomas"]
[WhiteFideId "13303139"]
[BlackFideId "4615964"]
[WhiteElo "2216"]
[BlackElo "2210"]
[Result "1-0"]
[Round "06"]
[TimeControl "180+2"]
[Date "2023.05.16"]
[WhiteClock "0:01:48"]
[BlackClock "0:00:42"]

1. e4 {[%clk 0:03:00]}  d5 {[%clk 0:02:59]} 2. exd5 {[%clk 0:03:00]}  Nf6 {[%clk 0:02:59]} 3. d4 {[%clk 0:02:59]}  Nxd5 {[%clk 0:02:59]} 4. c4 {[%clk 0:02:57]}  Nb6 {[%clk 0:02:58]} 5. c5 {[%clk 0:02:55]}  Nd5 {[%clk 0:02:57]} 6. Bc4 {[%clk 0:02:54]}  g6 {[%clk 0:02:56]} 7. Nc3 {[%clk 0:02:52]}  Nxc3 {[%clk 0:02:54]} 8. bxc3 {[%clk 0:02:53]}  Bg7 {[%clk 0:02:54]} 9. Nf3 {[%clk 0:02:50]}  O-O {[%clk 0:02:53]} 10. O-O {[%clk 0:02:50]}  Nc6 {[%clk 0:02:53]} 11. Re1 {[%clk 0:02:37]}  Bg4 {[%clk 0:02:50]} 12. h3 {[%clk 0:02:37]}  Bxf3 {[%clk 0:02:50]} 13. Qxf3 {[%clk 0:02:38]}  Nxd4 {[%clk 0:02:49]} 14. cxd4 {[%clk 0:02:30]}  Qxd4 {[%clk 0:02:50]} 15. Bg5 {[%clk 0:02:15]}  Qxc4 {[%clk 0:02:47]} 16. Rac1 {[%clk 0:02:15]}  Qxa2 {[%clk 0:02:42]} 17. Rxe7 {[%clk 0:02:14]}  c6 {[%clk 0:02:24]} 18. Rxb7 {[%clk 0:02:12]}  Qa6 {[%clk 0:02:23]} 19. Rcb1 {[%clk 0:02:01]}  Rac8 {[%clk 0:01:53]} 20. Be7 {[%clk 0:02:00]}  Rfe8 {[%clk 0:01:52]} 21. Bd6 {[%clk 0:02:00]}  Qc4 {[%clk 0:01:51]} 22. Rxa7 {[%clk 0:01:58]}  Bd4 {[%clk 0:01:47]} 23. Rb4 {[%clk 0:01:49]}  Qc1+ {[%clk 0:00:42]} 24. Kh2 {[%clk 0:01:48]} 1-0


[Site "https://www.chess.com"]

[Event "Titled Tuesday Blitz May 16 Early 2023"]
[White "merinasian"]
[Black "Souleidis, Georgios"]
[BlackFideId "4206827"]
[WhiteElo "2434"]
[BlackElo "2401"]
[Result "1-0"]
[Round "06"]
[TimeControl "180+2"]
[Date "2023.05.16"]
[WhiteClock "0:01:09"]
[BlackClock "0:01:01"]

1. d4 {[%clk 0:03:00]}  Nf6 {[%clk 0:02:59]} 2. Nf3 {[%clk 0:03:00]}  g6 {[%clk 0:02:59]} 3. g3 {[%clk 0:03:00]}  Bg7 {[%clk 0:03:00]} 4. Bg2 {[%clk 0:03:00]}  O-O {[%clk 0:03:01]} 5. O-O {[%clk 0:02:59]}  d6 {[%clk 0:03:01]} 6. b3 {[%clk 0:02:59]}  a5 {[%clk 0:03:02]} 7. c4 {[%clk 0:02:47]}  c6 {[%clk 0:02:59]} 8. Nc3 {[%clk 0:02:42]}  Bf5 {[%clk 0:02:58]} 9. Bb2 {[%clk 0:02:38]}  Ne4 {[%clk 0:02:58]} 10. Nh4 {[%clk 0:02:32]}  Nxc3 {[%clk 0:02:58]} 11. Bxc3 {[%clk 0:02:32]}  Bc8 {[%clk 0:02:59]} 12. Qd2 {[%clk 0:02:27]}  a4 {[%clk 0:02:56]} 13. b4 {[%clk 0:02:25]}  d5 {[%clk 0:02:48]} 14. cxd5 {[%clk 0:02:16]}  cxd5 {[%clk 0:02:48]} 15. b5 {[%clk 0:02:14]}  Be6 {[%clk 0:02:26]} 16. f4 {[%clk 0:02:12]}  f5 {[%clk 0:02:13]} 17. Nf3 {[%clk 0:02:01]}  Nd7 {[%clk 0:01:56]} 18. Ne5 {[%clk 0:01:46]}  Nf6 {[%clk 0:01:52]} 19. Bb4 {[%clk 0:01:38]}  Re8 {[%clk 0:01:44]} 20. Rfc1 {[%clk 0:01:28]}  Qb6 {[%clk 0:01:26]} 21. Bc5 {[%clk 0:01:14]}  Qxb5 {[%clk 0:01:27]} 22. Rab1 {[%clk 0:01:14]}  Qa6 {[%clk 0:01:27]} 23. Rb6 {[%clk 0:01:14]}  Qa5 {[%clk 0:01:06]} 24. Qxa5 {[%clk 0:01:13]}  Rxa5 {[%clk 0:01:07]} 25. Rxe6 {[%clk 0:01:13]}  Ne4 {[%clk 0:01:03]} 26. Bxe4 {[%clk 0:01:13]}  dxe4 {[%clk 0:01:03]} 27. Rxe7 {[%clk 0:01:09]}  Rc8 {[%clk 0:01:01]} 1-0


[Site "https://www.chess.com"]

[Event "Titled Tuesday Blitz May 16 Early 2023"]
[White "Herrera Ortiz, Miguel"]
[Black "Vovk, Orest"]
[WhiteFideId "5100550"]
[BlackFideId "14113490"]
[WhiteElo "2609"]
[BlackElo "2215"]
[Result "1-0"]
[Round "06"]
[TimeControl "180+2"]
[Date "2023.05.16"]
[WhiteClock "0:00:30"]
[BlackClock "0:00:00"]

1. e4 {[%clk 0:03:00]}  g5 {[%clk 0:02:55]} 2. d4 {[%clk 0:03:00]}  g4 {[%clk 0:02:54]} 3. Bc4 {[%clk 0:02:57]}  Bg7 {[%clk 0:02:45]} 4. Be3 {[%clk 0:02:54]}  h5 {[%clk 0:02:45]} 5. Nc3 {[%clk 0:02:53]}  c5 {[%clk 0:02:45]} 6. Nge2 {[%clk 0:02:52]}  Nc6 {[%clk 0:02:44]} 7. Qd2 {[%clk 0:02:50]}  cxd4 {[%clk 0:02:41]} 8. Nxd4 {[%clk 0:02:50]}  d6 {[%clk 0:02:40]} 9. O-O-O {[%clk 0:02:46]}  Qa5 {[%clk 0:02:30]} 10. Kb1 {[%clk 0:02:43]}  a6 {[%clk 0:02:27]} 11. Rhe1 {[%clk 0:02:39]}  Bd7 {[%clk 0:02:25]} 12. Nb3 {[%clk 0:02:33]}  Qb4 {[%clk 0:02:20]} 13. Bf1 {[%clk 0:02:29]}  Bxc3 {[%clk 0:02:16]} 14. bxc3 {[%clk 0:02:29]}  Qa3 {[%clk 0:02:17]} 15. Qc1 {[%clk 0:02:17]}  Qxc1+ {[%clk 0:02:16]} 16. Bxc1 {[%clk 0:02:17]}  Nf6 {[%clk 0:02:17]} 17. c4 {[%clk 0:02:14]}  b6 {[%clk 0:02:14]} 18. Bb2 {[%clk 0:02:14]}  Ne5 {[%clk 0:01:43]} 19. c5 {[%clk 0:02:01]}  bxc5 {[%clk 0:01:30]} 20. Nxc5 {[%clk 0:02:01]}  Bb5 {[%clk 0:01:24]} 21. c4 {[%clk 0:01:30]}  Nxc4 {[%clk 0:01:16]} 22. Bxc4 {[%clk 0:01:30]}  Bxc4 {[%clk 0:01:16]} 23. Bxf6 {[%clk 0:01:30]}  exf6 {[%clk 0:01:16]} 24. Rxd6 {[%clk 0:01:30]}  Rb8+ {[%clk 0:01:12]} 25. Ka1 {[%clk 0:01:28]}  O-O {[%clk 0:01:11]} 26. Nd7 {[%clk 0:01:23]}  Rfd8 {[%clk 0:00:57]} 27. Nxf6+ {[%clk 0:01:21]}  Kh8 {[%clk 0:00:46]} 28. Red1 {[%clk 0:01:21]}  Rxd6 {[%clk 0:00:42]} 29. Rxd6 {[%clk 0:01:21]}  Rb4 {[%clk 0:00:25]} 30. Nxh5 {[%clk 0:01:16]}  Ra4 {[%clk 0:00:22]} 31. Rd2 {[%clk 0:01:11]}  Bf1 {[%clk 0:00:18]} 32. f3 {[%clk 0:01:07]}  gxf3 {[%clk 0:00:16]} 33. gxf3 {[%clk 0:01:08]}  Rc4 {[%clk 0:00:13]} 34. Kb2 {[%clk 0:01:06]}  Rc6 {[%clk 0:00:09]} 35. Ng3 {[%clk 0:01:04]}  Bb5 {[%clk 0:00:09]} 36. f4 {[%clk 0:01:03]}  Rb6 {[%clk 0:00:07]} 37. Kc3 {[%clk 0:01:02]}  Rc6+ {[%clk 0:00:07]} 38. Kd4 {[%clk 0:00:57]}  f6 {[%clk 0:00:05]} 39. Nf5 {[%clk 0:00:53]}  Rc4+ {[%clk 0:00:05]} 40. Kd5 {[%clk 0:00:52]}  Rc8 {[%clk 0:00:04]} 41. Nd6 {[%clk 0:00:49]}  Bc6+ {[%clk 0:00:02]} 42. Ke6 {[%clk 0:00:47]}  Rb8 {[%clk 0:00:02]} 43. Kxf6 {[%clk 0:00:44]}  Rf8+ {[%clk 0:00:02]} 44. Ke5 {[%clk 0:00:40]}  Rg8 {[%clk 0:00:01]} 45. f5 {[%clk 0:00:35]}  Rg1 {[%clk 0:00:00]} 46. Kf6 {[%clk 0:00:30]} 1-0


[Site "https://www.chess.com"]

[Event "Titled Tuesday Blitz May 16 Early 2023"]
[White "Veiga, Jose Francisco R P Neves"]
[Black "Shubenkova, Veronika"]
[WhiteFideId "1930087"]
[BlackFideId "44124040"]
[WhiteElo "2320"]
[BlackElo "2060"]
[Result "1-0"]
[Round "06"]
[TimeControl "180+2"]
[Date "2023.05.16"]
[WhiteClock "0:00:05"]
[BlackClock "0:00:00"]

1. d4 {[%clk 0:03:00]}  d5 {[%clk 0:02:58]} 2. Nf3 {[%clk 0:02:56]}  e6 {[%clk 0:02:59]} 3. Bg5 {[%clk 0:02:54]}  Be7 {[%clk 0:02:57]} 4. Bxe7 {[%clk 0:02:54]}  Qxe7 {[%clk 0:02:58]} 5. e3 {[%clk 0:02:53]}  Nf6 {[%clk 0:02:57]} 6. Nbd2 {[%clk 0:02:52]}  Nbd7 {[%clk 0:02:58]} 7. Bd3 {[%clk 0:02:53]}  c5 {[%clk 0:02:58]} 8. c3 {[%clk 0:02:53]}  O-O {[%clk 0:02:56]} 9. O-O {[%clk 0:02:53]}  Qd6 {[%clk 0:02:56]} 10. Qe2 {[%clk 0:02:53]}  e5 {[%clk 0:02:55]} 11. dxe5 {[%clk 0:02:51]}  Nxe5 {[%clk 0:02:55]} 12. Nxe5 {[%clk 0:02:52]}  Qxe5 {[%clk 0:02:55]} 13. Nf3 {[%clk 0:02:53]}  Qe7 {[%clk 0:02:55]} 14. Rad1 {[%clk 0:02:52]}  Bg4 {[%clk 0:02:55]} 15. h3 {[%clk 0:02:52]}  Bh5 {[%clk 0:02:55]} 16. g4 {[%clk 0:02:49]}  Bg6 {[%clk 0:02:55]} 17. Bxg6 {[%clk 0:02:48]}  fxg6 {[%clk 0:02:52]} 18. g5 {[%clk 0:02:27]}  Ne4 {[%clk 0:02:43]} 19. Rxd5 {[%clk 0:02:25]}  Qf7 {[%clk 0:02:38]} 20. Re5 {[%clk 0:02:23]}  Nd6 {[%clk 0:02:26]} 21. Nd2 {[%clk 0:02:14]}  Nf5 {[%clk 0:02:15]} 22. f4 {[%clk 0:02:11]}  Rfe8 {[%clk 0:02:13]} 23. Nc4 {[%clk 0:01:24]}  Ng3 {[%clk 0:02:01]} 24. Qg4 {[%clk 0:01:22]}  Nxf1 {[%clk 0:01:33]} 25. Nd6 {[%clk 0:01:21]}  Nxe3 {[%clk 0:01:09]} 26. Rxe3 {[%clk 0:01:12]}  Qf8 {[%clk 0:00:57]} 27. Nxe8 {[%clk 0:01:08]}  Rxe8 {[%clk 0:00:55]} 28. Qe2 {[%clk 0:01:05]}  Rd8 {[%clk 0:00:36]} 29. Re7 {[%clk 0:00:58]}  Qxf4 {[%clk 0:00:32]} 30. Rxg7+ {[%clk 0:00:19]}  Kxg7 {[%clk 0:00:29]} 31. Qe7+ {[%clk 0:00:19]}  Qf7 {[%clk 0:00:27]} 32. Qxd8 {[%clk 0:00:19]}  b6 {[%clk 0:00:22]} 33. a4 {[%clk 0:00:17]}  h6 {[%clk 0:00:20]} 34. h4 {[%clk 0:00:15]}  Qb7 {[%clk 0:00:15]} 35. Qf6+ {[%clk 0:00:14]}  Kh7 {[%clk 0:00:15]} 36. Kf2 {[%clk 0:00:13]}  hxg5 {[%clk 0:00:13]} 37. hxg5 {[%clk 0:00:13]}  Qd7 {[%clk 0:00:13]} 38. Ke3 {[%clk 0:00:12]}  Qh3+ {[%clk 0:00:12]} 39. Kf4 {[%clk 0:00:10]}  Qf1+ {[%clk 0:00:11]} 40. Ke5 {[%clk 0:00:11]}  Qe2+ {[%clk 0:00:08]} 41. Kd6 {[%clk 0:00:11]}  Qd3+ {[%clk 0:00:08]} 42. Kc7 {[%clk 0:00:11]}  Qg3+ {[%clk 0:00:04]} 43. Kb7 {[%clk 0:00:11]}  Qg4 {[%clk 0:00:04]} 44. Kxa7 {[%clk 0:00:10]}  Qxa4+ {[%clk 0:00:03]} 45. Kxb6 {[%clk 0:00:10]}  Qb3+ {[%clk 0:00:04]} 46. Kxc5 {[%clk 0:00:09]}  Qxb2 {[%clk 0:00:04]} 47. Qf7+ {[%clk 0:00:09]}  Kh8 {[%clk 0:00:05]} 48. Qf6+ {[%clk 0:00:07]}  Kh7 {[%clk 0:00:05]} 49. Kc4 {[%clk 0:00:06]}  Qa2+ {[%clk 0:00:05]} 50. Kd4 {[%clk 0:00:07]}  Qd2+ {[%clk 0:00:05]} 51. Kc5 {[%clk 0:00:07]}  Qf2+ {[%clk 0:00:04]} 52. Kd6 {[%clk 0:00:05]}  Qd2+ {[%clk 0:00:03]} 53. Ke7 {[%clk 0:00:05]}  Qe2+ {[%clk 0:00:00]} 54. Kf8 {[%clk 0:00:05]} 1-0


[Site "https://www.chess.com"]

[Event "Titled Tuesday Blitz May 16 Early 2023"]
[White "Van Dael, Siem"]
[Black "Weishaeutel, Moritz"]
[WhiteFideId "1049771"]
[BlackFideId "12967300"]
[WhiteElo "2336"]
[BlackElo "2301"]
[Result "0-1"]
[Round "06"]
[TimeControl "180+2"]
[Date "2023.05.16"]
[WhiteClock "0:00:03"]
[BlackClock "0:00:08"]

1. e4 {[%clk 0:02:59]}  e5 {[%clk 0:03:00]} 2. Nf3 {[%clk 0:02:58]}  Nf6 {[%clk 0:03:00]} 3. Nc3 {[%clk 0:02:56]}  Nc6 {[%clk 0:02:59]} 4. a3 {[%clk 0:02:47]}  d5 {[%clk 0:02:57]} 5. exd5 {[%clk 0:02:45]}  Nxd5 {[%clk 0:02:58]} 6. Bc4 {[%clk 0:02:44]}  Be6 {[%clk 0:02:54]} 7. Bxd5 {[%clk 0:02:27]}  Bxd5 {[%clk 0:02:55]} 8. O-O {[%clk 0:02:26]}  Be6 {[%clk 0:02:35]} 9. Re1 {[%clk 0:02:26]}  Bc5 {[%clk 0:02:33]} 10. Ne4 {[%clk 0:02:21]}  Bb6 {[%clk 0:02:33]} 11. Neg5 {[%clk 0:02:18]}  Bg4 {[%clk 0:02:24]} 12. d4 {[%clk 0:02:12]}  O-O {[%clk 0:02:20]} 13. Qd3 {[%clk 0:02:08]}  g6 {[%clk 0:02:16]} 14. dxe5 {[%clk 0:02:04]}  Qxd3 {[%clk 0:02:05]} 15. cxd3 {[%clk 0:02:05]}  Rad8 {[%clk 0:02:06]} 16. h3 {[%clk 0:01:54]}  Bxf3 {[%clk 0:01:54]} 17. Nxf3 {[%clk 0:01:53]}  Rxd3 {[%clk 0:01:55]} 18. Bg5 {[%clk 0:01:51]}  Re8 {[%clk 0:01:43]} 19. Bf6 {[%clk 0:01:50]}  Nd4 {[%clk 0:01:19]} 20. Ng5 {[%clk 0:01:12]}  Rd2 {[%clk 0:00:59]} 21. Ne4 {[%clk 0:01:11]}  Rxb2 {[%clk 0:00:58]} 22. Rab1 {[%clk 0:01:01]}  Rxb1 {[%clk 0:00:49]} 23. Rxb1 {[%clk 0:01:02]}  Nc6 {[%clk 0:00:46]} 24. Rb5 {[%clk 0:00:47]}  a6 {[%clk 0:00:20]} 25. Rd5 {[%clk 0:00:46]}  Bd4 {[%clk 0:00:21]} 26. Rd7 {[%clk 0:00:39]}  Bxe5 {[%clk 0:00:19]} 27. Bxe5 {[%clk 0:00:28]}  Rxe5 {[%clk 0:00:19]} 28. f3 {[%clk 0:00:27]}  Re7 {[%clk 0:00:18]} 29. Rd5 {[%clk 0:00:25]}  f5 {[%clk 0:00:19]} 30. Nc5 {[%clk 0:00:24]}  Re5 {[%clk 0:00:13]} 31. Rxe5 {[%clk 0:00:18]}  Nxe5 {[%clk 0:00:14]} 32. Nxb7 {[%clk 0:00:19]}  Kf7 {[%clk 0:00:14]} 33. Nc5 {[%clk 0:00:19]}  a5 {[%clk 0:00:14]} 34. Kf2 {[%clk 0:00:19]}  Ke7 {[%clk 0:00:13]} 35. Ke3 {[%clk 0:00:19]}  Nc4+ {[%clk 0:00:13]} 36. Kd4 {[%clk 0:00:18]}  Nxa3 {[%clk 0:00:14]} 37. Nb7 {[%clk 0:00:18]}  a4 {[%clk 0:00:13]} 38. Nc5 {[%clk 0:00:18]}  Nc2+ {[%clk 0:00:13]} 39. Kc3 {[%clk 0:00:18]}  Ne1 {[%clk 0:00:13]} 40. g4 {[%clk 0:00:13]}  Nxf3 {[%clk 0:00:12]} 41. gxf5 {[%clk 0:00:13]}  gxf5 {[%clk 0:00:13]} 42. Nxa4 {[%clk 0:00:14]}  h5 {[%clk 0:00:11]} 43. Kd3 {[%clk 0:00:13]}  Ng5 {[%clk 0:00:11]} 44. Ke3 {[%clk 0:00:09]}  Nxh3 {[%clk 0:00:11]} 45. Nc3 {[%clk 0:00:10]}  Ke6 {[%clk 0:00:08]} 46. Kf3 {[%clk 0:00:10]}  Ng5+ {[%clk 0:00:08]} 47. Kf4 {[%clk 0:00:10]}  Ne4 {[%clk 0:00:09]} 48. Ne2 {[%clk 0:00:10]}  c5 {[%clk 0:00:09]} 49. Ke3 {[%clk 0:00:06]}  c4 {[%clk 0:00:08]} 50. Nf4+ {[%clk 0:00:06]}  Kd6 {[%clk 0:00:07]} 51. Nxh5 {[%clk 0:00:05]}  c3 {[%clk 0:00:07]} 52. Kd3 {[%clk 0:00:05]}  Ke5 {[%clk 0:00:08]} 53. Kc2 {[%clk 0:00:04]}  f4 {[%clk 0:00:08]} 54. Kd3 {[%clk 0:00:04]}  f3 {[%clk 0:00:08]} 55. Ke3 {[%clk 0:00:04]}  c2 {[%clk 0:00:08]} 56. Kxf3 {[%clk 0:00:04]}  c1=Q {[%clk 0:00:09]} 57. Ng3 {[%clk 0:00:02]}  Qf4+ {[%clk 0:00:09]} 58. Ke2 {[%clk 0:00:02]}  Qxg3 {[%clk 0:00:08]} 59. Kf1 {[%clk 0:00:03]}  Qf2# {[%clk 0:00:08]} 0-1


[Site "https://www.chess.com"]